Workbook

Sheet LEAST SQUARE METHOD
A1: a0 | B1: a1 | C1: a2 | D1: a3 | E1: a4 | F1: a5 | G1: a6
A2: 0.4176026038 | B2: 0.3623582429 | C2: 0.7478170055 | D2: -0.7467496701 | E2: 0.1990094839 | F2: -0.0203023046 | G2: 0.0006861502595
A4: x0 | B4: x1 | C4: x2 | D4: x3 | E4: x4 | F4: x5 | G4: x6 | H4: y | I4: y-LSM
A5: 1 | B5: =INDEX('RANDOM WAVE GENERATOR'!A:A, (ROW()-ROW(B$5))*50+2) -> 0 | C5: =B5*$B5 -> 0 | D5: =C5*$B5 -> 0 | E5: =D5*$B5 -> 0 | F5: =E5*$B5 -> 0 | G5: =F5*$B5 -> 0 | H5: 0.6958662306 | I5: =SUMPRODUCT($A$2:$G$2,A5:G5) -> 0.4176026038 | J5: 0 | K5: 0 | L5: 0 | M5: 0 | N5: 0
A6: 1 | B6: =INDEX('RANDOM WAVE GENERATOR'!A:A, (ROW()-ROW(B$5))*50+2) -> 0.3141592654 | C6: =B6*$B6 -> 0.09869604401 | D6: =C6*$B6 -> 0.03100627668 | E6: 0.009740909103 | F6: 0.003060196848 | G6: 0.0009613891936 | H6: -0.05525991217 | I6: 0.5839705203
A7: 1 | B7: =INDEX('RANDOM WAVE GENERATOR'!A:A, (ROW()-ROW(B$5))*50+2) -> 0.6283185307 | C7: 0.394784176 | D7: 0.2480502134 | E7: 0.1558545457 | F7: 0.09792629913 | G7: 0.06152890839 | H7: 0.7240479412 | I7: 0.7843445291
A8: 1 | B8: =INDEX('RANDOM WAVE GENERATOR'!A:A, (ROW()-ROW(B$5))*50+2) -> 0.9424777961 | C8: 0.8882643961 | D8: 0.8371694704 | E8: 0.7890136374 | F8: 0.743627834 | G8: 0.7008527221 | H8: 1.737376269 | I8: 0.9406251253
A9: 1 | B9: =INDEX('RANDOM WAVE GENERATOR'!A:A, (ROW()-ROW(B$5))*50+2) -> 1.256637061 | C9: 1.579136704 | D9: 1.984401708 | E9: 2.49367273 | F9: 3.133641572 | G9: 3.937850137 | H9: 0.6469210346 | I9: 1.007355697
A10: 1 | B10: =INDEX('RANDOM WAVE GENERATOR'!A:A, (ROW()-ROW(B$5))*50+2) -> 1.570796327 | C10: 2.4674011 | D10: 3.875784585 | E10: 6.08806819 | F10: 9.56311515 | G10: 15.02170615 | H10: 1.434508882 | I10: 0.9654544223
A11: 1 | B11: =INDEX('RANDOM WAVE GENERATOR'!A:A, (ROW()-ROW(B$5))*50+2) -> 1.884955592 | C11: 3.553057584 | D11: 6.697355763 | E11: 12.6242182 | F11: 23.79609069 | G11: 44.85457422 | H11: 0.7500127742 | I11: =SUMPRODUCT($A$2:$G$2,A11:G11) -> 0.8164211219
A12: 1 | B12: =INDEX('RANDOM WAVE GENERATOR'!A:A, (ROW()-ROW(B$5))*50+2) -> 2.199114858 | C12: 4.836106157 | D12: 10.6351529 | E12: 23.38792276 | F12: 51.43272842 | G12: 113.1064772 | H12: -0.5724820339 | I12: 0.5770190615
A13: 1 | B13: =INDEX('RANDOM WAVE GENERATOR'!A:A, (ROW()-ROW(B$5))*50+2) -> 2.513274123 | C13: 6.316546817 | D13: 15.87521366 | E13: 39.89876369 | F13: 100.2765303 | G13: 252.0224088 | H13: 0.6893186938 | I13: 0.2744317107
A14: 1 | B14: =INDEX('RANDOM WAVE GENERATOR'!A:A, (ROW()-ROW(B$5))*50+2) -> 2.827433388 | C14: 7.994379565 | D14: 22.6035757 | E14: 63.91010463 | F14: 180.7015637 | G14: 510.9216344 | H14: 0.0998085325 | I14: =SUMPRODUCT($A$2:$G$2,A14:G14) -> -0.05810554672
A15: 1 | B15: =INDEX('RANDOM WAVE GENERATOR'!A:A, (ROW()-ROW(B$5))*50+2) -> 3.141592654 | C15: 9.869604401 | D15: 31.00627668 | E15: 97.40909103 | F15: 306.0196848 | G15: 961.3891936 | H15: 0.02262458915 | I15: -0.385198748
A16: 1 | B16: =INDEX('RANDOM WAVE GENERATOR'!A:A, (ROW()-ROW(B$5))*50+2) -> 3.455751919 | C16: 11.94222133 | D16: 41.26935426 | E16: 142.6166502 | F16: 492.8477625 | G16: 1703.159601 | H16: -0.8575431351 | I16: -0.6727137336
A17: 1 | B17: =INDEX('RANDOM WAVE GENERATOR'!A:A, (ROW()-ROW(B$5))*50+2) -> 3.769911184 | C17: 14.21223034 | D17: 53.5788461 | E17: 201.9874912 | F17: 761.474902 | G17: 2870.69275 | H17: -0.8875341854 | I17: -0.8907195766
A18: 1 | B18: =INDEX('RANDOM WAVE GENERATOR'!A:A, (ROW()-ROW(B$5))*50+2) -> 4.08407045 | C18: 16.67963144 | D18: 68.12078987 | E18: 278.2101049 | F18: 1136.229668 | G18: 4640.442012 | H18: -0.7984236946 | I18: -1.015957058
A19: 1 | B19: =INDEX('RANDOM WAVE GENERATOR'!A:A, (ROW()-ROW(B$5))*50+2) -> 4.398229715 | C19: 19.34442463 | D19: 85.08122321 | E19: 374.2067641 | F19: 1645.847309 | G19: 7238.814543 | H19: -1.507883344 | I19: -1.033832188
A20: 1 | B20: =INDEX('RANDOM WAVE GENERATOR'!A:A, (ROW()-ROW(B$5))*50+2) -> 4.71238898 | C20: 22.2066099 | D20: 104.6461838 | E20: 493.1335234 | F20: 2323.836981 | G20: 10950.82378 | H20: -0.6092079502 | I20: -0.939934776
A21: 1 | B21: =INDEX('RANDOM WAVE GENERATOR'!A:A, (ROW()-ROW(B$5))*50+2) -> 5.026548246 | C21: 25.26618727 | D21: 127.0017093 | E21: 638.380219 | F21: 3208.84897 | G21: 16129.43416 | H21: -1.146183309 | I21: -0.7410820468
A22: 1 | B22: =INDEX('RANDOM WAVE GENERATOR'!A:A, (ROW()-ROW(B$5))*50+2) -> 5.340707511 | C22: 28.52315672 | D22: 152.3338373 | E22: 813.5704692 | F22: 4345.041916 | G22: 23205.598 | H22: -0.2392906873 | I22: -0.4558873003
A23: 1 | B23: =INDEX('RANDOM WAVE GENERATOR'!A:A, (ROW()-ROW(B$5))*50+2) -> 5.654866776 | C23: 31.97751826 | D23: 180.8286056 | E23: 1022.561674 | F23: 5782.450037 | G23: 32698.9846 | H23: 0.05728828015 | I23: -0.1148536221
A24: 1 | B24: =INDEX('RANDOM WAVE GENERATOR'!A:A, (ROW()-ROW(B$5))*50+2) -> 5.969026042 | C24: 35.62927189 | D24: 212.6720518 | E24: 1269.445015 | F24: 7577.350355 | G24: 45229.4016 | H24: 0.103371118 | I24: 0.2400073618
A25: 1 | B25: =INDEX('RANDOM WAVE GENERATOR'!A:A, (ROW()-ROW(B$5))*50+2) -> 6.283185307 | C25: 39.4784176 | D25: 248.0502134 | E25: 1558.545457 | F25: 9792.629913 | G25: 61528.90839 | H25: 0.5676431489 | I25: 0.5560316829

Sheet RANDOM WAVE GENERATOR
A1: x | B1: y | E1: 1 | F1: 2 | G1: 3 | H1: 4 | I1: 5 | J1: 6 | K1: 7 | L1: 8 | M1: 9 | N1: 10
A2: 0 | B2: =SIN($A2+2*PI()*$F$2)+$E$2*SUM($E$4:$N$4*SIN($A2*$E$5:$N$5*$E$6:$N$6+2*PI()*$E$3:$N$3)) -> -0.2698254766 | D2: a | E2: =0.3 -> 0.3 | F2: =RAND() -> 0.8118303442
A3: =2*PI()/1000+A2 -> 0.006283185307 | B3: =SIN($A3+2*PI()*$F$2)+$E$2*SUM($E$4:$N$4*SIN($A3*$E$5:$N$5*$E$6:$N$6+2*PI()*$E$3:$N$3)) -> -0.2946992835 | D3: b | E3: =RAND() -> 0.06502368791 | F3: =RAND() -> 0.4314916841 | G3: 0.3699684551 | H3: 0.212859168 | I3: 0.02413215486 | J3: 0.1856561375 | K3: 0.0332505879 | L3: 0.7958558491 | M3: 0.7459775374 | N3: 0.05485137306
A4: =2*PI()/1000+A3 -> 0.01256637061 | B4: =SIN($A4+2*PI()*$F$2)+$E$2*SUM($E$4:$N$4*SIN($A4*$E$5:$N$5*$E$6:$N$6+2*PI()*$E$3:$N$3)) -> -0.4821068634 | D4: c | E4: =RAND() -> 0.6518246518 | F4: =RAND() -> 0.7717239953 | G4: 0.4144377551 | H4: 0.8941929475 | I4: 0.3377246771 | J4: 0.3950486414 | K4: 0.0188324436 | L4: 0.06943471765 | M4: 0.2452189742 | N4: 0.964915209
A5: 0.01884955592 | B5: =SIN($A5+2*PI()*$F$2)+$E$2*SUM($E$4:$N$4*SIN($A5*$E$5:$N$5*$E$6:$N$6+2*PI()*$E$3:$N$3)) -> -0.6191362676 | D5: d | E5: =1/RAND() -> 2.371014072 | F5: =1/RAND() -> 1.02871042 | G5: 1.719856534 | H5: 2.589222386 | I5: 12.96358625 | J5: 1.029679924 | K5: 1.637484232 | L5: 1.084066275 | M5: 1.34527169 | N5: 3.627308913
A6: 0.02513274123 | B6: =SIN($A6+2*PI()*$F$2)+$E$2*SUM($E$4:$N$4*SIN($A6*$E$5:$N$5*$E$6:$N$6+2*PI()*$E$3:$N$3)) -> -0.2825987931 | D6: 2^n | E6: 1 | F6: =E6*2 -> 2 | G6: =F6*2 -> 4 | H6: 8 | I6: 16 | J6: 32 | K6: 64 | L6: 128 | M6: 256 | N6: 512
A7: 0.03141592654 | B7: =SIN($A7+2*PI()*$F$2)+$E$2*SUM($E$4:$N$4*SIN($A7*$E$5:$N$5*$E$6:$N$6+2*PI()*$E$3:$N$3)) -> -0.03248431609
A8: 0.03769911184 | B8: =SIN($A8+2*PI()*$F$2)+$E$2*SUM($E$4:$N$4*SIN($A8*$E$5:$N$5*$E$6:$N$6+2*PI()*$E$3:$N$3)) -> -0.07610446699
A9: 0.04398229715 | B9: =SIN($A9+2*PI()*$F$2)+$E$2*SUM($E$4:$N$4*SIN($A9*$E$5:$N$5*$E$6:$N$6+2*PI()*$E$3:$N$3)) -> -0.2567217903
A10: 0.05026548246 | B10: =SIN($A10+2*PI()*$F$2)+$E$2*SUM($E$4:$N$4*SIN($A10*$E$5:$N$5*$E$6:$N$6+2*PI()*$E$3:$N$3)) -> -0.7137875317
A11: 0.05654866776 | B11: =SIN($A11+2*PI()*$F$2)+$E$2*SUM($E$4:$N$4*SIN($A11*$E$5:$N$5*$E$6:$N$6+2*PI()*$E$3:$N$3)) -> -0.9138322312
A12: 0.06283185307 | B12: =SIN($A12+2*PI()*$F$2)+$E$2*SUM($E$4:$N$4*SIN($A12*$E$5:$N$5*$E$6:$N$6+2*PI()*$E$3:$N$3)) -> -0.6210690747
A13: 0.06911503838 | B13: =SIN($A13+2*PI()*$F$2)+$E$2*SUM($E$4:$N$4*SIN($A13*$E$5:$N$5*$E$6:$N$6+2*PI()*$E$3:$N$3)) -> -0.4886791187
A14: 0.07539822369 | B14: =SIN($A14+2*PI()*$F$2)+$E$2*SUM($E$4:$N$4*SIN($A14*$E$5:$N$5*$E$6:$N$6+2*PI()*$E$3:$N$3)) -> -0.4851239644
A15: 0.08168140899 | B15: =SIN($A15+2*PI()*$F$2)+$E$2*SUM($E$4:$N$4*SIN($A15*$E$5:$N$5*$E$6:$N$6+2*PI()*$E$3:$N$3)) -> -0.4986216939
A16: 0.0879645943 | B16: =SIN($A16+2*PI()*$F$2)+$E$2*SUM($E$4:$N$4*SIN($A16*$E$5:$N$5*$E$6:$N$6+2*PI()*$E$3:$N$3)) -> -0.7880905381
A17: 0.09424777961 | B17: =SIN($A17+2*PI()*$F$2)+$E$2*SUM($E$4:$N$4*SIN($A17*$E$5:$N$5*$E$6:$N$6+2*PI()*$E$3:$N$3)) -> -0.9735079583
A18: 0.1005309649 | B18: =SIN($A18+2*PI()*$F$2)+$E$2*SUM($E$4:$N$4*SIN($A18*$E$5:$N$5*$E$6:$N$6+2*PI()*$E$3:$N$3)) -> -1.019554283
A19: 0.1068141502 | B19: =SIN($A19+2*PI()*$F$2)+$E$2*SUM($E$4:$N$4*SIN($A19*$E$5:$N$5*$E$6:$N$6+2*PI()*$E$3:$N$3)) -> -1.196091613
A20: 0.1130973355 | B20: =SIN($A20+2*PI()*$F$2)+$E$2*SUM($E$4:$N$4*SIN($A20*$E$5:$N$5*$E$6:$N$6+2*PI()*$E$3:$N$3)) -> -1.038181416
A21: 0.1193805208 | B21: =SIN($A21+2*PI()*$F$2)+$E$2*SUM($E$4:$N$4*SIN($A21*$E$5:$N$5*$E$6:$N$6+2*PI()*$E$3:$N$3)) -> -0.6812227294
A22: 0.1256637061 | B22: =SIN($A22+2*PI()*$F$2)+$E$2*SUM($E$4:$N$4*SIN($A22*$E$5:$N$5*$E$6:$N$6+2*PI()*$E$3:$N$3)) -> -0.6961581284
A23: 0.1319468915 | B23: =SIN($A23+2*PI()*$F$2)+$E$2*SUM($E$4:$N$4*SIN($A23*$E$5:$N$5*$E$6:$N$6+2*PI()*$E$3:$N$3)) -> -0.8663558011
A24: 0.1382300768 | B24: =SIN($A24+2*PI()*$F$2)+$E$2*SUM($E$4:$N$4*SIN($A24*$E$5:$N$5*$E$6:$N$6+2*PI()*$E$3:$N$3)) -> -1.162747749
A25: 0.1445132621 | B25: =SIN($A25+2*PI()*$F$2)+$E$2*SUM($E$4:$N$4*SIN($A25*$E$5:$N$5*$E$6:$N$6+2*PI()*$E$3:$N$3)) -> -1.457154822
A26: 0.1507964474 | B26: =SIN($A26+2*PI()*$F$2)+$E$2*SUM($E$4:$N$4*SIN($A26*$E$5:$N$5*$E$6:$N$6+2*PI()*$E$3:$N$3)) -> -1.187002813
A27: 0.1570796327 | B27: =SIN($A27+2*PI()*$F$2)+$E$2*SUM($E$4:$N$4*SIN($A27*$E$5:$N$5*$E$6:$N$6+2*PI()*$E$3:$N$3)) -> -0.7836590413
A28: 0.163362818 | B28: =SIN($A28+2*PI()*$F$2)+$E$2*SUM($E$4:$N$4*SIN($A28*$E$5:$N$5*$E$6:$N$6+2*PI()*$E$3:$N$3)) -> -0.7350934529
A29: 0.1696460033 | B29: =SIN($A29+2*PI()*$F$2)+$E$2*SUM($E$4:$N$4*SIN($A29*$E$5:$N$5*$E$6:$N$6+2*PI()*$E$3:$N$3)) -> -0.7282165097
A30: 0.1759291886 | B30: =SIN($A30+2*PI()*$F$2)+$E$2*SUM($E$4:$N$4*SIN($A30*$E$5:$N$5*$E$6:$N$6+2*PI()*$E$3:$N$3)) -> -0.8783343498
A31: 0.1822123739 | B31: =SIN($A31+2*PI()*$F$2)+$E$2*SUM($E$4:$N$4*SIN($A31*$E$5:$N$5*$E$6:$N$6+2*PI()*$E$3:$N$3)) -> -1.105874426
A32: 0.1884955592 | B32: =SIN($A32+2*PI()*$F$2)+$E$2*SUM($E$4:$N$4*SIN($A32*$E$5:$N$5*$E$6:$N$6+2*PI()*$E$3:$N$3)) -> -1.01583736
A33: 0.1947787445 | B33: =SIN($A33+2*PI()*$F$2)+$E$2*SUM($E$4:$N$4*SIN($A33*$E$5:$N$5*$E$6:$N$6+2*PI()*$E$3:$N$3)) -> -0.9650508428
A34: 0.2010619298 | B34: =SIN($A34+2*PI()*$F$2)+$E$2*SUM($E$4:$N$4*SIN($A34*$E$5:$N$5*$E$6:$N$6+2*PI()*$E$3:$N$3)) -> -0.9201557006
A35: 0.2073451151 | B35: =SIN($A35+2*PI()*$F$2)+$E$2*SUM($E$4:$N$4*SIN($A35*$E$5:$N$5*$E$6:$N$6+2*PI()*$E$3:$N$3)) -> -0.5595343036
A36: 0.2136283004 | B36: =SIN($A36+2*PI()*$F$2)+$E$2*SUM($E$4:$N$4*SIN($A36*$E$5:$N$5*$E$6:$N$6+2*PI()*$E$3:$N$3)) -> -0.4320102963
A37: 0.2199114858 | B37: =SIN($A37+2*PI()*$F$2)+$E$2*SUM($E$4:$N$4*SIN($A37*$E$5:$N$5*$E$6:$N$6+2*PI()*$E$3:$N$3)) -> -0.6434733278
A38: 0.2261946711 | B38: =SIN($A38+2*PI()*$F$2)+$E$2*SUM($E$4:$N$4*SIN($A38*$E$5:$N$5*$E$6:$N$6+2*PI()*$E$3:$N$3)) -> -0.8457430721
A39: 0.2324778564 | B39: =SIN($A39+2*PI()*$F$2)+$E$2*SUM($E$4:$N$4*SIN($A39*$E$5:$N$5*$E$6:$N$6+2*PI()*$E$3:$N$3)) -> -1.109613141
A40: 0.2387610417 | B40: =SIN($A40+2*PI()*$F$2)+$E$2*SUM($E$4:$N$4*SIN($A40*$E$5:$N$5*$E$6:$N$6+2*PI()*$E$3:$N$3)) -> -1.027318548
A41: 0.245044227 | B41: =SIN($A41+2*PI()*$F$2)+$E$2*SUM($E$4:$N$4*SIN($A41*$E$5:$N$5*$E$6:$N$6+2*PI()*$E$3:$N$3)) -> -0.5144700748
A42: 0.2513274123 | B42: =SIN($A42+2*PI()*$F$2)+$E$2*SUM($E$4:$N$4*SIN($A42*$E$5:$N$5*$E$6:$N$6+2*PI()*$E$3:$N$3)) -> -0.3426971295
A43: 0.2576105976 | B43: =SIN($A43+2*PI()*$F$2)+$E$2*SUM($E$4:$N$4*SIN($A43*$E$5:$N$5*$E$6:$N$6+2*PI()*$E$3:$N$3)) -> -0.4722843209
A44: 0.2638937829 | B44: =SIN($A44+2*PI()*$F$2)+$E$2*SUM($E$4:$N$4*SIN($A44*$E$5:$N$5*$E$6:$N$6+2*PI()*$E$3:$N$3)) -> -0.6151808941
A45: 0.2701769682 | B45: =SIN($A45+2*PI()*$F$2)+$E$2*SUM($E$4:$N$4*SIN($A45*$E$5:$N$5*$E$6:$N$6+2*PI()*$E$3:$N$3)) -> -0.8980660723
A46: 0.2764601535 | B46: =SIN($A46+2*PI()*$F$2)+$E$2*SUM($E$4:$N$4*SIN($A46*$E$5:$N$5*$E$6:$N$6+2*PI()*$E$3:$N$3)) -> -0.9231116804
A47: 0.2827433388 | B47: =SIN($A47+2*PI()*$F$2)+$E$2*SUM($E$4:$N$4*SIN($A47*$E$5:$N$5*$E$6:$N$6+2*PI()*$E$3:$N$3)) -> -0.7058733283
A48: 0.2890265241 | B48: =SIN($A48+2*PI()*$F$2)+$E$2*SUM($E$4:$N$4*SIN($A48*$E$5:$N$5*$E$6:$N$6+2*PI()*$E$3:$N$3)) -> -0.6772252318
A49: 0.2953097094 | B49: =SIN($A49+2*PI()*$F$2)+$E$2*SUM($E$4:$N$4*SIN($A49*$E$5:$N$5*$E$6:$N$6+2*PI()*$E$3:$N$3)) -> -0.499346845
A50: 0.3015928947 | B50: =SIN($A50+2*PI()*$F$2)+$E$2*SUM($E$4:$N$4*SIN($A50*$E$5:$N$5*$E$6:$N$6+2*PI()*$E$3:$N$3)) -> -0.2732778045
A51: 0.3078760801 | B51: =SIN($A51+2*PI()*$F$2)+$E$2*SUM($E$4:$N$4*SIN($A51*$E$5:$N$5*$E$6:$N$6+2*PI()*$E$3:$N$3)) -> -0.4659282025
A52: 0.3141592654 | B52: =SIN($A52+2*PI()*$F$2)+$E$2*SUM($E$4:$N$4*SIN($A52*$E$5:$N$5*$E$6:$N$6+2*PI()*$E$3:$N$3)) -> -0.7074419236
A53: 0.3204424507 | B53: =SIN($A53+2*PI()*$F$2)+$E$2*SUM($E$4:$N$4*SIN($A53*$E$5:$N$5*$E$6:$N$6+2*PI()*$E$3:$N$3)) -> -0.8662786211
A54: 0.326725636 | B54: =SIN($A54+2*PI()*$F$2)+$E$2*SUM($E$4:$N$4*SIN($A54*$E$5:$N$5*$E$6:$N$6+2*PI()*$E$3:$N$3)) -> -0.9245490258
A55: 0.3330088213 | B55: =SIN($A55+2*PI()*$F$2)+$E$2*SUM($E$4:$N$4*SIN($A55*$E$5:$N$5*$E$6:$N$6+2*PI()*$E$3:$N$3)) -> -0.5003319244
A56: 0.3392920066 | B56: =SIN($A56+2*PI()*$F$2)+$E$2*SUM($E$4:$N$4*SIN($A56*$E$5:$N$5*$E$6:$N$6+2*PI()*$E$3:$N$3)) -> -0.1227486961
A57: 0.3455751919 | B57: =SIN($A57+2*PI()*$F$2)+$E$2*SUM($E$4:$N$4*SIN($A57*$E$5:$N$5*$E$6:$N$6+2*PI()*$E$3:$N$3)) -> -0.2804212793
A58: 0.3518583772 | B58: =SIN($A58+2*PI()*$F$2)+$E$2*SUM($E$4:$N$4*SIN($A58*$E$5:$N$5*$E$6:$N$6+2*PI()*$E$3:$N$3)) -> -0.5026840061
A59: 0.3581415625 | B59: =SIN($A59+2*PI()*$F$2)+$E$2*SUM($E$4:$N$4*SIN($A59*$E$5:$N$5*$E$6:$N$6+2*PI()*$E$3:$N$3)) -> -0.7289454898
A60: 0.3644247478 | B60: =SIN($A60+2*PI()*$F$2)+$E$2*SUM($E$4:$N$4*SIN($A60*$E$5:$N$5*$E$6:$N$6+2*PI()*$E$3:$N$3)) -> -0.872499129
A61: 0.3707079331 | B61: =SIN($A61+2*PI()*$F$2)+$E$2*SUM($E$4:$N$4*SIN($A61*$E$5:$N$5*$E$6:$N$6+2*PI()*$E$3:$N$3)) -> -0.6187824151
A62: 0.3769911184 | B62: =SIN($A62+2*PI()*$F$2)+$E$2*SUM($E$4:$N$4*SIN($A62*$E$5:$N$5*$E$6:$N$6+2*PI()*$E$3:$N$3)) -> -0.4532199151
A63: 0.3832743037 | B63: =SIN($A63+2*PI()*$F$2)+$E$2*SUM($E$4:$N$4*SIN($A63*$E$5:$N$5*$E$6:$N$6+2*PI()*$E$3:$N$3)) -> -0.4772129641
A64: 0.389557489 | B64: =SIN($A64+2*PI()*$F$2)+$E$2*SUM($E$4:$N$4*SIN($A64*$E$5:$N$5*$E$6:$N$6+2*PI()*$E$3:$N$3)) -> -0.3412640851
A65: 0.3958406744 | B65: =SIN($A65+2*PI()*$F$2)+$E$2*SUM($E$4:$N$4*SIN($A65*$E$5:$N$5*$E$6:$N$6+2*PI()*$E$3:$N$3)) -> -0.4591661868
A66: 0.4021238597 | B66: =SIN($A66+2*PI()*$F$2)+$E$2*SUM($E$4:$N$4*SIN($A66*$E$5:$N$5*$E$6:$N$6+2*PI()*$E$3:$N$3)) -> -0.8149561631
A67: 0.408407045 | B67: =SIN($A67+2*PI()*$F$2)+$E$2*SUM($E$4:$N$4*SIN($A67*$E$5:$N$5*$E$6:$N$6+2*PI()*$E$3:$N$3)) -> -0.96604178
A68: =2*PI()/1000+A67 -> 0.4146902303 | B68: =SIN($A68+2*PI()*$F$2)+$E$2*SUM($E$4:$N$4*SIN($A68*$E$5:$N$5*$E$6:$N$6+2*PI()*$E$3:$N$3)) -> -1.050926817
A69: 0.4209734156 | B69: =SIN($A69+2*PI()*$F$2)+$E$2*SUM($E$4:$N$4*SIN($A69*$E$5:$N$5*$E$6:$N$6+2*PI()*$E$3:$N$3)) -> -0.8642931442
A70: 0.4272566009 | B70: =SIN($A70+2*PI()*$F$2)+$E$2*SUM($E$4:$N$4*SIN($A70*$E$5:$N$5*$E$6:$N$6+2*PI()*$E$3:$N$3)) -> -0.4275613976
A71: 0.4335397862 | B71: =SIN($A71+2*PI()*$F$2)+$E$2*SUM($E$4:$N$4*SIN($A71*$E$5:$N$5*$E$6:$N$6+2*PI()*$E$3:$N$3)) -> -0.4927819465
A72: 0.4398229715 | B72: =SIN($A72+2*PI()*$F$2)+$E$2*SUM($E$4:$N$4*SIN($A72*$E$5:$N$5*$E$6:$N$6+2*PI()*$E$3:$N$3)) -> -0.891204076
A73: 0.4461061568 | B73: =SIN($A73+2*PI()*$F$2)+$E$2*SUM($E$4:$N$4*SIN($A73*$E$5:$N$5*$E$6:$N$6+2*PI()*$E$3:$N$3)) -> -1.140968363
A74: 0.4523893421 | B74: =SIN($A74+2*PI()*$F$2)+$E$2*SUM($E$4:$N$4*SIN($A74*$E$5:$N$5*$E$6:$N$6+2*PI()*$E$3:$N$3)) -> -1.330935636
A75: 0.4586725274 | B75: =SIN($A75+2*PI()*$F$2)+$E$2*SUM($E$4:$N$4*SIN($A75*$E$5:$N$5*$E$6:$N$6+2*PI()*$E$3:$N$3)) -> -1.184608513
A76: 0.4649557127 | B76: =SIN($A76+2*PI()*$F$2)+$E$2*SUM($E$4:$N$4*SIN($A76*$E$5:$N$5*$E$6:$N$6+2*PI()*$E$3:$N$3)) -> -0.8424442458
A77: 0.471238898 | B77: =SIN($A77+2*PI()*$F$2)+$E$2*SUM($E$4:$N$4*SIN($A77*$E$5:$N$5*$E$6:$N$6+2*PI()*$E$3:$N$3)) -> -0.8486523936
A78: 0.4775220833 | B78: =SIN($A78+2*PI()*$F$2)+$E$2*SUM($E$4:$N$4*SIN($A78*$E$5:$N$5*$E$6:$N$6+2*PI()*$E$3:$N$3)) -> -0.8634964605
A79: 0.4838052687 | B79: =SIN($A79+2*PI()*$F$2)+$E$2*SUM($E$4:$N$4*SIN($A79*$E$5:$N$5*$E$6:$N$6+2*PI()*$E$3:$N$3)) -> -0.8331118704
A80: 0.490088454 | B80: =SIN($A80+2*PI()*$F$2)+$E$2*SUM($E$4:$N$4*SIN($A80*$E$5:$N$5*$E$6:$N$6+2*PI()*$E$3:$N$3)) -> -1.098150424
A81: 0.4963716393 | B81: =SIN($A81+2*PI()*$F$2)+$E$2*SUM($E$4:$N$4*SIN($A81*$E$5:$N$5*$E$6:$N$6+2*PI()*$E$3:$N$3)) -> -1.233484454
A82: 0.5026548246 | B82: =SIN($A82+2*PI()*$F$2)+$E$2*SUM($E$4:$N$4*SIN($A82*$E$5:$N$5*$E$6:$N$6+2*PI()*$E$3:$N$3)) -> -1.144394456
A83: 0.5089380099 | B83: =SIN($A83+2*PI()*$F$2)+$E$2*SUM($E$4:$N$4*SIN($A83*$E$5:$N$5*$E$6:$N$6+2*PI()*$E$3:$N$3)) -> -1.000278314
A84: 0.5152211952 | B84: =SIN($A84+2*PI()*$F$2)+$E$2*SUM($E$4:$N$4*SIN($A84*$E$5:$N$5*$E$6:$N$6+2*PI()*$E$3:$N$3)) -> -0.5594721708
A85: 0.5215043805 | B85: =SIN($A85+2*PI()*$F$2)+$E$2*SUM($E$4:$N$4*SIN($A85*$E$5:$N$5*$E$6:$N$6+2*PI()*$E$3:$N$3)) -> -0.3153543227
A86: 0.5277875658 | B86: =SIN($A86+2*PI()*$F$2)+$E$2*SUM($E$4:$N$4*SIN($A86*$E$5:$N$5*$E$6:$N$6+2*PI()*$E$3:$N$3)) -> -0.6353527311
A87: 0.5340707511 | B87: =SIN($A87+2*PI()*$F$2)+$E$2*SUM($E$4:$N$4*SIN($A87*$E$5:$N$5*$E$6:$N$6+2*PI()*$E$3:$N$3)) -> -0.8771353548
A88: 0.5403539364 | B88: =SIN($A88+2*PI()*$F$2)+$E$2*SUM($E$4:$N$4*SIN($A88*$E$5:$N$5*$E$6:$N$6+2*PI()*$E$3:$N$3)) -> -0.9026659583
A89: 0.5466371217 | B89: =SIN($A89+2*PI()*$F$2)+$E$2*SUM($E$4:$N$4*SIN($A89*$E$5:$N$5*$E$6:$N$6+2*PI()*$E$3:$N$3)) -> -0.7586908252
A90: 0.552920307 | B90: =SIN($A90+2*PI()*$F$2)+$E$2*SUM($E$4:$N$4*SIN($A90*$E$5:$N$5*$E$6:$N$6+2*PI()*$E$3:$N$3)) -> -0.2907709425
A91: 0.5592034923 | B91: =SIN($A91+2*PI()*$F$2)+$E$2*SUM($E$4:$N$4*SIN($A91*$E$5:$N$5*$E$6:$N$6+2*PI()*$E$3:$N$3)) -> -0.06824276003
A92: 0.5654866776 | B92: =SIN($A92+2*PI()*$F$2)+$E$2*SUM($E$4:$N$4*SIN($A92*$E$5:$N$5*$E$6:$N$6+2*PI()*$E$3:$N$3)) -> -0.1985731227
A93: 0.571769863 | B93: =SIN($A93+2*PI()*$F$2)+$E$2*SUM($E$4:$N$4*SIN($A93*$E$5:$N$5*$E$6:$N$6+2*PI()*$E$3:$N$3)) -> -0.1896888584
A94: 0.5780530483 | B94: =SIN($A94+2*PI()*$F$2)+$E$2*SUM($E$4:$N$4*SIN($A94*$E$5:$N$5*$E$6:$N$6+2*PI()*$E$3:$N$3)) -> -0.3011382773
A95: 0.5843362336 | B95: =SIN($A95+2*PI()*$F$2)+$E$2*SUM($E$4:$N$4*SIN($A95*$E$5:$N$5*$E$6:$N$6+2*PI()*$E$3:$N$3)) -> -0.4930890622
A96: 0.5906194189 | B96: =SIN($A96+2*PI()*$F$2)+$E$2*SUM($E$4:$N$4*SIN($A96*$E$5:$N$5*$E$6:$N$6+2*PI()*$E$3:$N$3)) -> -0.3719609862
A97: 0.5969026042 | B97: =SIN($A97+2*PI()*$F$2)+$E$2*SUM($E$4:$N$4*SIN($A97*$E$5:$N$5*$E$6:$N$6+2*PI()*$E$3:$N$3)) -> -0.2222706173
A98: 0.6031857895 | B98: =SIN($A98+2*PI()*$F$2)+$E$2*SUM($E$4:$N$4*SIN($A98*$E$5:$N$5*$E$6:$N$6+2*PI()*$E$3:$N$3)) -> -0.001841317832
A99: 0.6094689748 | B99: =SIN($A99+2*PI()*$F$2)+$E$2*SUM($E$4:$N$4*SIN($A99*$E$5:$N$5*$E$6:$N$6+2*PI()*$E$3:$N$3)) -> 0.2909243989
A100: 0.6157521601 | B100: =SIN($A100+2*PI()*$F$2)+$E$2*SUM($E$4:$N$4*SIN($A100*$E$5:$N$5*$E$6:$N$6+2*PI()*$E$3:$N$3)) -> 0.04679810156
A101: 0.6220353454 | B101: =SIN($A101+2*PI()*$F$2)+$E$2*SUM($E$4:$N$4*SIN($A101*$E$5:$N$5*$E$6:$N$6+2*PI()*$E$3:$N$3)) -> -0.4199955073
A102: 0.6283185307 | B102: =SIN($A102+2*PI()*$F$2)+$E$2*SUM($E$4:$N$4*SIN($A102*$E$5:$N$5*$E$6:$N$6+2*PI()*$E$3:$N$3)) -> -0.5346029573
A103: =2*PI()/1000+A102 -> 0.634601716 | B103: =SIN($A103+2*PI()*$F$2)+$E$2*SUM($E$4:$N$4*SIN($A103*$E$5:$N$5*$E$6:$N$6+2*PI()*$E$3:$N$3)) -> -0.4875877206
A104: 0.6408849013 | B104: =SIN($A104+2*PI()*$F$2)+$E$2*SUM($E$4:$N$4*SIN($A104*$E$5:$N$5*$E$6:$N$6+2*PI()*$E$3:$N$3)) -> -0.2031351423
A105: 0.6471680866 | B105: =SIN($A105+2*PI()*$F$2)+$E$2*SUM($E$4:$N$4*SIN($A105*$E$5:$N$5*$E$6:$N$6+2*PI()*$E$3:$N$3)) -> 0.09676946488
A106: 0.6534512719 | B106: =SIN($A106+2*PI()*$F$2)+$E$2*SUM($E$4:$N$4*SIN($A106*$E$5:$N$5*$E$6:$N$6+2*PI()*$E$3:$N$3)) -> -0.1120908107
A107: 0.6597344573 | B107: =SIN($A107+2*PI()*$F$2)+$E$2*SUM($E$4:$N$4*SIN($A107*$E$5:$N$5*$E$6:$N$6+2*PI()*$E$3:$N$3)) -> -0.3708503739
A108: 0.6660176426 | B108: =SIN($A108+2*PI()*$F$2)+$E$2*SUM($E$4:$N$4*SIN($A108*$E$5:$N$5*$E$6:$N$6+2*PI()*$E$3:$N$3)) -> -0.4516484012
A109: 0.6723008279 | B109: =SIN($A109+2*PI()*$F$2)+$E$2*SUM($E$4:$N$4*SIN($A109*$E$5:$N$5*$E$6:$N$6+2*PI()*$E$3:$N$3)) -> -0.6614354837
A110: 0.6785840132 | B110: =SIN($A110+2*PI()*$F$2)+$E$2*SUM($E$4:$N$4*SIN($A110*$E$5:$N$5*$E$6:$N$6+2*PI()*$E$3:$N$3)) -> -0.6599046947
A111: 0.6848671985 | B111: =SIN($A111+2*PI()*$F$2)+$E$2*SUM($E$4:$N$4*SIN($A111*$E$5:$N$5*$E$6:$N$6+2*PI()*$E$3:$N$3)) -> -0.4660193345
A112: 0.6911503838 | B112: =SIN($A112+2*PI()*$F$2)+$E$2*SUM($E$4:$N$4*SIN($A112*$E$5:$N$5*$E$6:$N$6+2*PI()*$E$3:$N$3)) -> -0.3921634031
A113: 0.6974335691 | B113: =SIN($A113+2*PI()*$F$2)+$E$2*SUM($E$4:$N$4*SIN($A113*$E$5:$N$5*$E$6:$N$6+2*PI()*$E$3:$N$3)) -> -0.20694767
A114: 0.7037167544 | B114: =SIN($A114+2*PI()*$F$2)+$E$2*SUM($E$4:$N$4*SIN($A114*$E$5:$N$5*$E$6:$N$6+2*PI()*$E$3:$N$3)) -> -0.2428102362
A115: 0.7099999397 | B115: =SIN($A115+2*PI()*$F$2)+$E$2*SUM($E$4:$N$4*SIN($A115*$E$5:$N$5*$E$6:$N$6+2*PI()*$E$3:$N$3)) -> -0.7219268461
A116: 0.716283125 | B116: =SIN($A116+2*PI()*$F$2)+$E$2*SUM($E$4:$N$4*SIN($A116*$E$5:$N$5*$E$6:$N$6+2*PI()*$E$3:$N$3)) -> -0.9281559479
A117: 0.7225663103 | B117: =SIN($A117+2*PI()*$F$2)+$E$2*SUM($E$4:$N$4*SIN($A117*$E$5:$N$5*$E$6:$N$6+2*PI()*$E$3:$N$3)) -> -0.7838636087
A118: 0.7288494956 | B118: =SIN($A118+2*PI()*$F$2)+$E$2*SUM($E$4:$N$4*SIN($A118*$E$5:$N$5*$E$6:$N$6+2*PI()*$E$3:$N$3)) -> -0.5441102745
A119: 0.7351326809 | B119: =SIN($A119+2*PI()*$F$2)+$E$2*SUM($E$4:$N$4*SIN($A119*$E$5:$N$5*$E$6:$N$6+2*PI()*$E$3:$N$3)) -> -0.1707202807
A120: 0.7414158662 | B120: =SIN($A120+2*PI()*$F$2)+$E$2*SUM($E$4:$N$4*SIN($A120*$E$5:$N$5*$E$6:$N$6+2*PI()*$E$3:$N$3)) -> -0.1809043551
A121: 0.7476990516 | B121: =SIN($A121+2*PI()*$F$2)+$E$2*SUM($E$4:$N$4*SIN($A121*$E$5:$N$5*$E$6:$N$6+2*PI()*$E$3:$N$3)) -> -0.5657262715
A122: 0.7539822369 | B122: =SIN($A122+2*PI()*$F$2)+$E$2*SUM($E$4:$N$4*SIN($A122*$E$5:$N$5*$E$6:$N$6+2*PI()*$E$3:$N$3)) -> -0.6723722411
A123: 0.7602654222 | B123: =SIN($A123+2*PI()*$F$2)+$E$2*SUM($E$4:$N$4*SIN($A123*$E$5:$N$5*$E$6:$N$6+2*PI()*$E$3:$N$3)) -> -0.6979665884
A124: 0.7665486075 | B124: =SIN($A124+2*PI()*$F$2)+$E$2*SUM($E$4:$N$4*SIN($A124*$E$5:$N$5*$E$6:$N$6+2*PI()*$E$3:$N$3)) -> -0.7157114594
A125: 0.7728317928 | B125: =SIN($A125+2*PI()*$F$2)+$E$2*SUM($E$4:$N$4*SIN($A125*$E$5:$N$5*$E$6:$N$6+2*PI()*$E$3:$N$3)) -> -0.459649595
A126: 0.7791149781 | B126: =SIN($A126+2*PI()*$F$2)+$E$2*SUM($E$4:$N$4*SIN($A126*$E$5:$N$5*$E$6:$N$6+2*PI()*$E$3:$N$3)) -> -0.3157779566
A127: 0.7853981634 | B127: =SIN($A127+2*PI()*$F$2)+$E$2*SUM($E$4:$N$4*SIN($A127*$E$5:$N$5*$E$6:$N$6+2*PI()*$E$3:$N$3)) -> -0.2746961905
A128: 0.7916813487 | B128: =SIN($A128+2*PI()*$F$2)+$E$2*SUM($E$4:$N$4*SIN($A128*$E$5:$N$5*$E$6:$N$6+2*PI()*$E$3:$N$3)) -> -0.1905519718
A129: 0.797964534 | B129: =SIN($A129+2*PI()*$F$2)+$E$2*SUM($E$4:$N$4*SIN($A129*$E$5:$N$5*$E$6:$N$6+2*PI()*$E$3:$N$3)) -> -0.5048513784
A130: 0.8042477193 | B130: =SIN($A130+2*PI()*$F$2)+$E$2*SUM($E$4:$N$4*SIN($A130*$E$5:$N$5*$E$6:$N$6+2*PI()*$E$3:$N$3)) -> -0.8548855455
A131: 0.8105309046 | B131: =SIN($A131+2*PI()*$F$2)+$E$2*SUM($E$4:$N$4*SIN($A131*$E$5:$N$5*$E$6:$N$6+2*PI()*$E$3:$N$3)) -> -0.7158445141
A132: 0.8168140899 | B132: =SIN($A132+2*PI()*$F$2)+$E$2*SUM($E$4:$N$4*SIN($A132*$E$5:$N$5*$E$6:$N$6+2*PI()*$E$3:$N$3)) -> -0.4574125084
A133: 0.8230972752 | B133: =SIN($A133+2*PI()*$F$2)+$E$2*SUM($E$4:$N$4*SIN($A133*$E$5:$N$5*$E$6:$N$6+2*PI()*$E$3:$N$3)) -> -0.1637748397
A134: 0.8293804605 | B134: =SIN($A134+2*PI()*$F$2)+$E$2*SUM($E$4:$N$4*SIN($A134*$E$5:$N$5*$E$6:$N$6+2*PI()*$E$3:$N$3)) -> -0.007787131057
A135: 0.8356636459 | B135: =SIN($A135+2*PI()*$F$2)+$E$2*SUM($E$4:$N$4*SIN($A135*$E$5:$N$5*$E$6:$N$6+2*PI()*$E$3:$N$3)) -> -0.3712637096
A136: 0.8419468312 | B136: =SIN($A136+2*PI()*$F$2)+$E$2*SUM($E$4:$N$4*SIN($A136*$E$5:$N$5*$E$6:$N$6+2*PI()*$E$3:$N$3)) -> -0.6606087994
A137: 0.8482300165 | B137: =SIN($A137+2*PI()*$F$2)+$E$2*SUM($E$4:$N$4*SIN($A137*$E$5:$N$5*$E$6:$N$6+2*PI()*$E$3:$N$3)) -> -0.5720253773
A138: 0.8545132018 | B138: =SIN($A138+2*PI()*$F$2)+$E$2*SUM($E$4:$N$4*SIN($A138*$E$5:$N$5*$E$6:$N$6+2*PI()*$E$3:$N$3)) -> -0.516857764
A139: 0.8607963871 | B139: =SIN($A139+2*PI()*$F$2)+$E$2*SUM($E$4:$N$4*SIN($A139*$E$5:$N$5*$E$6:$N$6+2*PI()*$E$3:$N$3)) -> -0.3214144868
A140: 0.8670795724 | B140: =SIN($A140+2*PI()*$F$2)+$E$2*SUM($E$4:$N$4*SIN($A140*$E$5:$N$5*$E$6:$N$6+2*PI()*$E$3:$N$3)) -> -0.079129039
A141: 0.8733627577 | B141: =SIN($A141+2*PI()*$F$2)+$E$2*SUM($E$4:$N$4*SIN($A141*$E$5:$N$5*$E$6:$N$6+2*PI()*$E$3:$N$3)) -> -0.1163083085
A142: 0.879645943 | B142: =SIN($A142+2*PI()*$F$2)+$E$2*SUM($E$4:$N$4*SIN($A142*$E$5:$N$5*$E$6:$N$6+2*PI()*$E$3:$N$3)) -> -0.09508240736
A143: 0.8859291283 | B143: =SIN($A143+2*PI()*$F$2)+$E$2*SUM($E$4:$N$4*SIN($A143*$E$5:$N$5*$E$6:$N$6+2*PI()*$E$3:$N$3)) -> -0.1659557318
A144: 0.8922123136 | B144: =SIN($A144+2*PI()*$F$2)+$E$2*SUM($E$4:$N$4*SIN($A144*$E$5:$N$5*$E$6:$N$6+2*PI()*$E$3:$N$3)) -> -0.5009898169
A145: 0.8984954989 | B145: =SIN($A145+2*PI()*$F$2)+$E$2*SUM($E$4:$N$4*SIN($A145*$E$5:$N$5*$E$6:$N$6+2*PI()*$E$3:$N$3)) -> -0.455822013
A146: 0.9047786842 | B146: =SIN($A146+2*PI()*$F$2)+$E$2*SUM($E$4:$N$4*SIN($A146*$E$5:$N$5*$E$6:$N$6+2*PI()*$E$3:$N$3)) -> -0.09431666316
A147: 0.9110618695 | B147: =SIN($A147+2*PI()*$F$2)+$E$2*SUM($E$4:$N$4*SIN($A147*$E$5:$N$5*$E$6:$N$6+2*PI()*$E$3:$N$3)) -> 0.1612062231
A148: 0.9173450548 | B148: =SIN($A148+2*PI()*$F$2)+$E$2*SUM($E$4:$N$4*SIN($A148*$E$5:$N$5*$E$6:$N$6+2*PI()*$E$3:$N$3)) -> 0.36088228
A149: 0.9236282402 | B149: =SIN($A149+2*PI()*$F$2)+$E$2*SUM($E$4:$N$4*SIN($A149*$E$5:$N$5*$E$6:$N$6+2*PI()*$E$3:$N$3)) -> 0.1622380207
A150: 0.9299114255 | B150: =SIN($A150+2*PI()*$F$2)+$E$2*SUM($E$4:$N$4*SIN($A150*$E$5:$N$5*$E$6:$N$6+2*PI()*$E$3:$N$3)) -> -0.2902401049
A151: 0.9361946108 | B151: =SIN($A151+2*PI()*$F$2)+$E$2*SUM($E$4:$N$4*SIN($A151*$E$5:$N$5*$E$6:$N$6+2*PI()*$E$3:$N$3)) -> -0.2831485346
A152: 0.9424777961 | B152: =SIN($A152+2*PI()*$F$2)+$E$2*SUM($E$4:$N$4*SIN($A152*$E$5:$N$5*$E$6:$N$6+2*PI()*$E$3:$N$3)) -> -0.08935727496
A153: 0.9487609814 | B153: =SIN($A153+2*PI()*$F$2)+$E$2*SUM($E$4:$N$4*SIN($A153*$E$5:$N$5*$E$6:$N$6+2*PI()*$E$3:$N$3)) -> 0.02673335499
A154: 0.9550441667 | B154: =SIN($A154+2*PI()*$F$2)+$E$2*SUM($E$4:$N$4*SIN($A154*$E$5:$N$5*$E$6:$N$6+2*PI()*$E$3:$N$3)) -> 0.2423788618
A155: 0.961327352 | B155: =SIN($A155+2*PI()*$F$2)+$E$2*SUM($E$4:$N$4*SIN($A155*$E$5:$N$5*$E$6:$N$6+2*PI()*$E$3:$N$3)) -> 0.2016182669
A156: 0.9676105373 | B156: =SIN($A156+2*PI()*$F$2)+$E$2*SUM($E$4:$N$4*SIN($A156*$E$5:$N$5*$E$6:$N$6+2*PI()*$E$3:$N$3)) -> 0.001732288793
A157: 0.9738937226 | B157: =SIN($A157+2*PI()*$F$2)+$E$2*SUM($E$4:$N$4*SIN($A157*$E$5:$N$5*$E$6:$N$6+2*PI()*$E$3:$N$3)) -> -0.04612290547
A158: 0.9801769079 | B158: =SIN($A158+2*PI()*$F$2)+$E$2*SUM($E$4:$N$4*SIN($A158*$E$5:$N$5*$E$6:$N$6+2*PI()*$E$3:$N$3)) -> -0.3059928997
A159: 0.9864600932 | B159: =SIN($A159+2*PI()*$F$2)+$E$2*SUM($E$4:$N$4*SIN($A159*$E$5:$N$5*$E$6:$N$6+2*PI()*$E$3:$N$3)) -> -0.5067997648
A160: 0.9927432785 | B160: =SIN($A160+2*PI()*$F$2)+$E$2*SUM($E$4:$N$4*SIN($A160*$E$5:$N$5*$E$6:$N$6+2*PI()*$E$3:$N$3)) -> -0.2551747966
A161: 0.9990264638 | B161: =SIN($A161+2*PI()*$F$2)+$E$2*SUM($E$4:$N$4*SIN($A161*$E$5:$N$5*$E$6:$N$6+2*PI()*$E$3:$N$3)) -> -0.05591113562
A162: 1.005309649 | B162: =SIN($A162+2*PI()*$F$2)+$E$2*SUM($E$4:$N$4*SIN($A162*$E$5:$N$5*$E$6:$N$6+2*PI()*$E$3:$N$3)) -> -0.02146360849
A163: 1.011592834 | B163: =SIN($A163+2*PI()*$F$2)+$E$2*SUM($E$4:$N$4*SIN($A163*$E$5:$N$5*$E$6:$N$6+2*PI()*$E$3:$N$3)) -> -0.1515575412
A164: 1.01787602 | B164: =SIN($A164+2*PI()*$F$2)+$E$2*SUM($E$4:$N$4*SIN($A164*$E$5:$N$5*$E$6:$N$6+2*PI()*$E$3:$N$3)) -> -0.6600544117
A165: 1.024159205 | B165: =SIN($A165+2*PI()*$F$2)+$E$2*SUM($E$4:$N$4*SIN($A165*$E$5:$N$5*$E$6:$N$6+2*PI()*$E$3:$N$3)) -> -0.914956695
A166: 1.03044239 | B166: =SIN($A166+2*PI()*$F$2)+$E$2*SUM($E$4:$N$4*SIN($A166*$E$5:$N$5*$E$6:$N$6+2*PI()*$E$3:$N$3)) -> -0.6751999646
A167: =2*PI()/1000+A166 -> 1.036725576 | B167: =SIN($A167+2*PI()*$F$2)+$E$2*SUM($E$4:$N$4*SIN($A167*$E$5:$N$5*$E$6:$N$6+2*PI()*$E$3:$N$3)) -> -0.5303094631
A168: 1.043008761 | B168: =SIN($A168+2*PI()*$F$2)+$E$2*SUM($E$4:$N$4*SIN($A168*$E$5:$N$5*$E$6:$N$6+2*PI()*$E$3:$N$3)) -> -0.4316537838
A169: 1.049291946 | B169: =SIN($A169+2*PI()*$F$2)+$E$2*SUM($E$4:$N$4*SIN($A169*$E$5:$N$5*$E$6:$N$6+2*PI()*$E$3:$N$3)) -> -0.4156407805
A170: 1.055575132 | B170: =SIN($A170+2*PI()*$F$2)+$E$2*SUM($E$4:$N$4*SIN($A170*$E$5:$N$5*$E$6:$N$6+2*PI()*$E$3:$N$3)) -> -0.698150067
A171: 1.061858317 | B171: =SIN($A171+2*PI()*$F$2)+$E$2*SUM($E$4:$N$4*SIN($A171*$E$5:$N$5*$E$6:$N$6+2*PI()*$E$3:$N$3)) -> -0.8136188288
A172: 1.068141502 | B172: =SIN($A172+2*PI()*$F$2)+$E$2*SUM($E$4:$N$4*SIN($A172*$E$5:$N$5*$E$6:$N$6+2*PI()*$E$3:$N$3)) -> -0.8214514446
A173: 1.074424688 | B173: =SIN($A173+2*PI()*$F$2)+$E$2*SUM($E$4:$N$4*SIN($A173*$E$5:$N$5*$E$6:$N$6+2*PI()*$E$3:$N$3)) -> -0.9794450331
A174: 1.080707873 | B174: =SIN($A174+2*PI()*$F$2)+$E$2*SUM($E$4:$N$4*SIN($A174*$E$5:$N$5*$E$6:$N$6+2*PI()*$E$3:$N$3)) -> -0.7971844058
A175: 1.086991058 | B175: =SIN($A175+2*PI()*$F$2)+$E$2*SUM($E$4:$N$4*SIN($A175*$E$5:$N$5*$E$6:$N$6+2*PI()*$E$3:$N$3)) -> -0.4388132525
A176: 1.093274243 | B176: =SIN($A176+2*PI()*$F$2)+$E$2*SUM($E$4:$N$4*SIN($A176*$E$5:$N$5*$E$6:$N$6+2*PI()*$E$3:$N$3)) -> -0.3610970503
A177: 1.099557429 | B177: =SIN($A177+2*PI()*$F$2)+$E$2*SUM($E$4:$N$4*SIN($A177*$E$5:$N$5*$E$6:$N$6+2*PI()*$E$3:$N$3)) -> -0.3801593159
A178: 1.105840614 | B178: =SIN($A178+2*PI()*$F$2)+$E$2*SUM($E$4:$N$4*SIN($A178*$E$5:$N$5*$E$6:$N$6+2*PI()*$E$3:$N$3)) -> -0.6392319896
A179: 1.112123799 | B179: =SIN($A179+2*PI()*$F$2)+$E$2*SUM($E$4:$N$4*SIN($A179*$E$5:$N$5*$E$6:$N$6+2*PI()*$E$3:$N$3)) -> -0.9532751766
A180: 1.118406985 | B180: =SIN($A180+2*PI()*$F$2)+$E$2*SUM($E$4:$N$4*SIN($A180*$E$5:$N$5*$E$6:$N$6+2*PI()*$E$3:$N$3)) -> -0.6921646678
A181: 1.12469017 | B181: =SIN($A181+2*PI()*$F$2)+$E$2*SUM($E$4:$N$4*SIN($A181*$E$5:$N$5*$E$6:$N$6+2*PI()*$E$3:$N$3)) -> -0.2824048906
A182: 1.130973355 | B182: =SIN($A182+2*PI()*$F$2)+$E$2*SUM($E$4:$N$4*SIN($A182*$E$5:$N$5*$E$6:$N$6+2*PI()*$E$3:$N$3)) -> -0.1384327944
A183: 1.137256541 | B183: =SIN($A183+2*PI()*$F$2)+$E$2*SUM($E$4:$N$4*SIN($A183*$E$5:$N$5*$E$6:$N$6+2*PI()*$E$3:$N$3)) -> -0.04484493178
A184: 1.143539726 | B184: =SIN($A184+2*PI()*$F$2)+$E$2*SUM($E$4:$N$4*SIN($A184*$E$5:$N$5*$E$6:$N$6+2*PI()*$E$3:$N$3)) -> -0.2058897367
A185: 1.149822911 | B185: =SIN($A185+2*PI()*$F$2)+$E$2*SUM($E$4:$N$4*SIN($A185*$E$5:$N$5*$E$6:$N$6+2*PI()*$E$3:$N$3)) -> -0.4166191242
A186: 1.156106097 | B186: =SIN($A186+2*PI()*$F$2)+$E$2*SUM($E$4:$N$4*SIN($A186*$E$5:$N$5*$E$6:$N$6+2*PI()*$E$3:$N$3)) -> -0.2973633355
A187: 1.162389282 | B187: =SIN($A187+2*PI()*$F$2)+$E$2*SUM($E$4:$N$4*SIN($A187*$E$5:$N$5*$E$6:$N$6+2*PI()*$E$3:$N$3)) -> -0.2724819167
A188: 1.168672467 | B188: =SIN($A188+2*PI()*$F$2)+$E$2*SUM($E$4:$N$4*SIN($A188*$E$5:$N$5*$E$6:$N$6+2*PI()*$E$3:$N$3)) -> -0.2458519575
A189: 1.174955652 | B189: =SIN($A189+2*PI()*$F$2)+$E$2*SUM($E$4:$N$4*SIN($A189*$E$5:$N$5*$E$6:$N$6+2*PI()*$E$3:$N$3)) -> 0.07883761993
A190: 1.181238838 | B190: =SIN($A190+2*PI()*$F$2)+$E$2*SUM($E$4:$N$4*SIN($A190*$E$5:$N$5*$E$6:$N$6+2*PI()*$E$3:$N$3)) -> 0.1912759775
A191: 1.187522023 | B191: =SIN($A191+2*PI()*$F$2)+$E$2*SUM($E$4:$N$4*SIN($A191*$E$5:$N$5*$E$6:$N$6+2*PI()*$E$3:$N$3)) -> 0.07070042003
A192: 1.193805208 | B192: =SIN($A192+2*PI()*$F$2)+$E$2*SUM($E$4:$N$4*SIN($A192*$E$5:$N$5*$E$6:$N$6+2*PI()*$E$3:$N$3)) -> -0.08903125904
A193: 1.200088394 | B193: =SIN($A193+2*PI()*$F$2)+$E$2*SUM($E$4:$N$4*SIN($A193*$E$5:$N$5*$E$6:$N$6+2*PI()*$E$3:$N$3)) -> -0.4280742282
A194: 1.206371579 | B194: =SIN($A194+2*PI()*$F$2)+$E$2*SUM($E$4:$N$4*SIN($A194*$E$5:$N$5*$E$6:$N$6+2*PI()*$E$3:$N$3)) -> -0.421192131
A195: 1.212654764 | B195: =SIN($A195+2*PI()*$F$2)+$E$2*SUM($E$4:$N$4*SIN($A195*$E$5:$N$5*$E$6:$N$6+2*PI()*$E$3:$N$3)) -> 0.02681027022
A196: 1.21893795 | B196: =SIN($A196+2*PI()*$F$2)+$E$2*SUM($E$4:$N$4*SIN($A196*$E$5:$N$5*$E$6:$N$6+2*PI()*$E$3:$N$3)) -> 0.1899578846
A197: 1.225221135 | B197: =SIN($A197+2*PI()*$F$2)+$E$2*SUM($E$4:$N$4*SIN($A197*$E$5:$N$5*$E$6:$N$6+2*PI()*$E$3:$N$3)) -> 0.1188489204
A198: 1.23150432 | B198: =SIN($A198+2*PI()*$F$2)+$E$2*SUM($E$4:$N$4*SIN($A198*$E$5:$N$5*$E$6:$N$6+2*PI()*$E$3:$N$3)) -> -0.04622150969
A199: 1.237787506 | B199: =SIN($A199+2*PI()*$F$2)+$E$2*SUM($E$4:$N$4*SIN($A199*$E$5:$N$5*$E$6:$N$6+2*PI()*$E$3:$N$3)) -> -0.3885256513
A200: 1.244070691 | B200: =SIN($A200+2*PI()*$F$2)+$E$2*SUM($E$4:$N$4*SIN($A200*$E$5:$N$5*$E$6:$N$6+2*PI()*$E$3:$N$3)) -> -0.4118275968
... 802 more rows
